bitfinex/quotes_SOLUSD_20250602
["timestamp","ask_amount","ask_price","bid_price","bid_amount"]
[1748872319815,38.65059904,152.53,152.5,6.55737704]
[1748872320233,38.65059904,152.52,152.48,1.0]
[1748872320431,38.65059904,152.51,152.48,1.0]
[1748872320619,38.65059904,152.5,152.48,1.0]
[1748872321517,8.15538189,152.58,152.5,6.55737704]
[1748872321738,38.65059904,152.57,152.53,38.65059904]
[1748872322336,38.65059904,152.57,152.5,22.95081966]
[1748872322337,38.65059904,152.57,152.52,38.65059904]
[1748872322739,38.65059904,152.56,152.52,38.65059904]
[1748872322916,38.65059904,152.55,152.51,38.65059904]
[1748872323109,38.65059904,152.55,152.5,6.55737704]
[1748872323313,38.65059904,152.55,152.51,38.65059904]
[1748872323656,38.65059904,152.56,152.52,6.55651717]
[1748872323829,6.4754,152.62,152.52,6.55651717]
[1748872323830,38.65059904,152.59,152.55,38.65059904]
[1748872324719,38.65059904,152.59,152.54,38.65059904]
[1748872325429,38.65059904,152.57,152.53,44.38]
[1748872325737,38.65059904,152.54,152.49,6.55780706]
[1748872325938,38.65059904,152.52,152.49,6.55780706]
[1748872326239,6.55537701,152.55,152.49,6.55780706]
[1748872326436,38.65059904,152.54,152.5,38.65059904]
[1748872326853,38.65059904,152.52,152.48,51.91806334]
[1748872327338,38.65059904,152.52,152.48,1.0]
[1748872327849,6.55479811,152.56,152.48,46.20871923]
[1748872328023,38.65059904,152.53,152.49,38.65059904]
[1748872328641,38.65059904,152.53,152.48,7.55812019]
[1748872328850,38.65059904,152.5,152.48,1.0]
[1748872329342,38.65059904,152.49,152.48,1.0]
[1748872330326,45.2084061,152.49,152.48,1.0]
[1748872331134,38.65059904,152.49,152.48,1.0]
[1748872331720,82.91059904,152.49,152.48,1.0]
[1748872331942,89.4684061,152.49,152.48,1.0]
[1748872332336,45.2084061,152.49,152.48,1.0]
[1748872332828,38.65059904,152.49,152.48,1.0]
[1748872333827,45.2084061,152.49,152.48,1.0]
[1748872334240,6.55780706,152.49,152.48,1.0]
[1748872334441,45.2084061,152.49,152.48,1.0]
[1748872335763,6.55694708,152.51,152.48,1.0]
[1748872335932,38.65059904,152.49,152.48,1.0]
[1748872336747,38.65059904,152.51,152.48,1.0]
[1748872336938,38.65059904,152.5,152.48,1.0]
[1748872337136,8.038,152.54,152.48,1.0]
[1748872337338,1.5004,152.54,152.48,46.20862665]
[1748872337637,38.65059904,152.56,152.51,38.65059904]
[1748872337840,38.65059904,152.54,152.51,6.55694708]
[1748872338026,38.65059904,152.53,152.49,6.55780706]
[1748872338226,38.65059904,152.52,152.49,6.55780706]
[1748872338451,22.94028969,152.57,152.48,1.0]
[1748872338452,38.65059904,152.5,152.48,1.0]
[1748872338653,38.65059904,152.49,152.48,1.0]
[1748872339949,45.2084061,152.49,152.48,1.0]
[1748872340835,46.8721061,152.49,152.48,1.0]
[1748872344731,40.31429904,152.49,152.48,1.0]
[1748872345061,38.65059904,152.52,152.48,46.20883036]
[1748872345539,38.65059904,152.54,152.49,38.65059904]
[1748872345738,24.25929828,152.58,152.5,38.65059904]
[1748872345739,6.55449844,152.57,152.5,38.65059904]
[1748872345934,38.65059904,152.58,152.53,38.65059904]
[1748872346139,38.65059904,152.58,152.54,45.20625657]
[1748872346344,6.55231029,152.62,152.56,38.65059904]
[1748872346552,6.55231029,152.62,152.55,38.65059904]
[1748872346553,38.65059904,152.59,152.55,38.65059904]
[1748872346864,38.65059904,152.59,152.54,45.20625657]
[1748872347043,38.65059904,152.59,152.54,6.55565753]
[1748872347242,38.65059904,152.61,152.56,38.65059904]
[1748872347451,50.73983917,152.63,152.58,38.65059904]
[1748872347636,12.08924013,152.63,152.6,38.65059904]
[1748872348036,38.65059904,152.65,152.6,45.20330866]
[1748872348240,38.65059904,152.65,152.61,38.65059904]
[1748872348455,38.65059904,152.64,152.6,45.20330866]
[1748872348846,9.34609035,152.66,152.6,45.20330866]
[1748872349059,38.65059904,152.64,152.6,45.20330866]
[1748872349565,38.65059904,152.61,152.57,44.9725]
[1748872349956,38.65059904,152.6,152.57,18.9725]
[1748872350364,45.20384595,152.6,152.57,12.86]
[1748872350664,38.65059904,152.58,152.57,12.86]
[1748872350968,38.65059904,152.58,152.52,63.33646951]
[1748872351265,6.55324691,152.6,152.53,38.65059904]
[1748872351266,38.65059904,152.57,152.53,38.65059904]
[1748872351466,38.65059904,152.55,152.52,12.86]
[1748872351636,38.65059904,152.54,152.52,12.86]
[1748872351964,38.65059904,152.55,152.52,12.86]
[1748872352563,38.65059904,152.56,152.52,58.06696483]
[1748872352760,38.65059904,152.56,152.52,51.51059904]
[1748872352960,38.65059904,152.56,152.52,12.86]
[1748872353147,38.65059904,152.56,152.52,19.41649172]
[1748872353348,38.65059904,152.55,152.52,12.86]
[1748872354063,38.65059904,152.54,152.52,12.86]
[1748872354252,38.65059904,152.53,152.52,12.86]
[1748872354651,45.20668636,152.53,152.52,12.86]
[1748872354855,38.65059904,152.53,152.52,12.86]
[1748872355052,38.65059904,152.53,152.49,139.62839937]
[1748872355251,38.65059904,152.56,152.52,38.65059904]
[1748872355442,17.92192493,152.61,152.54,38.65059904]
[1748872355644,17.92192493,152.61,152.49,100.97780033]
[1748872355645,38.65059904,152.56,152.49,117.372318]
[1748872355839,38.65059904,152.56,152.51,38.65059904]
[1748872356073,38.65059904,152.54,152.5,38.65059904]
[1748872356279,38.65059904,152.54,152.49,6.55780033]
[1748872356450,38.65059904,152.54,152.49,45.20839937]
[1748872356880,38.65059904,152.54,152.5,38.65059904]
[1748872357061,38.65059904,152.57,152.53,38.65059904]
[1748872357472,38.65059904,152.57,152.52,38.65059904]
[1748872357658,38.65059904,152.56,152.52,38.65059904]
[1748872357976,6.55393891,152.58,152.52,38.65059904]
[1748872358273,12.86,152.63,152.57,38.65059904]
[1748872358455,38.65059904,152.62,152.58,38.65059904]
[1748872358862,45.20201242,152.64,152.59,38.65059904]
[1748872359068,38.65059904,152.61,152.57,38.65059904]
[1748872359770,38.65059904,152.59,152.55,38.65059904]
[1748872359959,38.65059904,152.58,152.54,38.65059904]
[1748872360171,38.65059904,152.6,152.55,38.65059904]
[1748872360360,61.58041912,152.64,152.56,38.65059904]
[1748872360361,22.92982008,152.64,152.56,38.65059904]
[1748872360561,38.65059904,152.61,152.57,38.65059904]
[1748872360856,22.92982008,152.64,152.56,38.65059904]
[1748872361078,38.65059904,152.62,152.57,38.65059904]
[1748872361376,38.65059904,152.61,152.57,38.65059904]
[1748872361957,6.55141338,152.64,152.57,38.65059904]
[1748872362160,38.65059904,152.61,152.57,38.65059904]
[1748872362358,38.65059904,152.62,152.59,6.5535094]
[1748872362571,38.65059904,152.63,152.59,45.20410844]
[1748872362772,38.65059904,152.65,152.61,38.65059904]
[1748872362986,38.65059904,152.65,152.59,6.5535094]
[1748872362987,38.65059904,152.65,152.6,38.65059904]
[1748872363460,6.54853221,152.71,152.64,38.65059904]
[1748872363667,6.54853221,152.71,152.66,38.65059904]
[1748872363876,6.54807782,152.72,152.67,38.65059904]
[1748872364176,45.19867686,152.72,152.67,38.65059904]
[1748872364378,38.65059904,152.72,152.68,38.65059904]
[1748872364583,6.1591,152.75,152.68,38.65059904]
[1748872364584,6.54686982,152.75,152.69,38.65059904]
[1748872364761,6.54686982,152.75,152.7,38.65059904]
[1748872364762,38.65059904,152.74,152.7,38.65059904]
[1748872364958,38.65059904,152.74,152.68,6.54959299]
[1748872364959,9.2189,152.77,152.71,38.65059904]
[1748872365277,38.65059904,152.73,152.69,38.65059904]
[1748872365484,38.65059904,152.72,152.68,71.20019203]
[1748872365656,38.65059904,152.71,152.67,6.4174]
[1748872365976,74.24203209,152.77,152.68,38.65059904]
[1748872365977,38.65059904,152.73,152.68,38.65059904]
[1748872366200,38.65059904,152.73,152.69,38.65059904]
[1748872366683,6.54621628,152.76,152.68,45.19993252]
[1748872366871,38.65059904,152.72,152.67,12.96733]
[1748872367071,38.65059904,152.73,152.68,38.65059904]
[1748872367279,6.54621628,152.76,152.7,38.65059904]
[1748872367474,38.65059904,152.75,152.71,38.65059904]
[1748872367674,38.65059904,152.75,152.7,38.65059904]
[1748872368277,38.65059904,152.74,152.7,38.65059904]
[1748872368502,7.6717,152.77,152.72,38.65059904]
[1748872368705,46.32229904,152.77,152.73,38.65059904]
[1748872368864,38.65059904,152.76,152.72,38.65059904]
[1748872369066,46.32229904,152.77,152.72,38.65059904]
[1748872369489,38.65059904,152.76,152.72,38.65059904]
[1748872369820,38.65059904,152.73,152.69,12.52]
[1748872369967,38.65059904,152.7,152.65,12.52]
[1748872370171,38.65059904,152.7,152.66,38.65059904]
[1748872370405,38.65059904,152.71,152.66,38.65059904]
[1748872370698,38.65059904,152.71,152.66,45.20082606]
[1748872371279,40.35059904,152.7,152.66,38.65059904]
[1748872371483,38.65059904,152.67,152.65,12.52]
[1748872371677,1.7,152.7,152.65,12.52]
[1748872371678,38.65059904,152.66,152.65,12.52]
[1748872371877,38.65059904,152.67,152.65,12.52]
[1748872372082,38.65059904,152.66,152.65,12.52]
[1748872372283,6.54859299,152.71,152.65,12.52]
[1748872372284,38.65059904,152.67,152.65,12.52]
[1748872372487,6.54793085,152.72,152.65,51.17059904]
[1748872372694,38.65059904,152.71,152.67,38.65059904]
[1748872372876,38.65059904,152.7,152.66,38.65059904]
[1748872373081,38.65059904,152.7,152.65,12.52]
[1748872373082,6.54793085,152.72,152.67,38.65059904]
[1748872373275,38.65059904,152.71,152.67,38.65059904]
[1748872373483,38.65059904,152.7,152.65,19.07084243]
[1748872373671,38.65059904,152.67,152.65,12.52]
[1748872373868,22.91775798,152.72,152.65,12.52]
[1748872373869,38.65059904,152.66,152.65,12.52]
[1748872374269,38.65059904,152.66,152.63,126.93169754]
[1748872374473,6.55019476,152.67,152.63,94.38]
[1748872374802,38.65059904,152.66,152.63,94.38]
[1748872375687,38.65059904,152.65,152.63,94.38]
[1748872375887,38.65059904,152.67,152.63,100.93171976]
[1748872376417,38.65059904,152.64,152.61,12.5]
[1748872376699,38.65059904,152.63,152.61,12.5]
[1748872376996,6.55053215,152.66,152.61,12.5]
[1748872376997,38.65059904,152.64,152.61,12.5]
[1748872377294,38.65059904,152.65,152.61,19.05245258]
[1748872377692,38.65059904,152.65,152.61,57.70305162]
[1748872378599,38.65059904,152.64,152.61,19.05257724]
[1748872378897,38.65059904,152.65,152.61,19.05257724]
[1748872379477,38.65059904,152.63,152.6,26.0]
[1748872379683,6.55042487,152.67,152.59,64.34771766]
[1748872379896,38.65059904,152.64,152.59,64.34771766]
[1748872380082,38.65059904,152.63,152.59,64.34771766]
[1748872380278,6.55042487,152.67,152.59,64.34771766]
[1748872380279,38.65059904,152.61,152.59,12.5]
[1748872380493,38.65059904,152.6,152.59,12.5]
[1748872380707,45.20396019,152.6,152.54,12.5]
[1748872380877,38.65059904,152.57,152.54,19.05551472]
[1748872381077,38.65059904,152.57,152.54,12.5]
[1748872381480,38.65059904,152.55,152.5,6.5572607]
[1748872381700,38.65059904,152.52,152.49,19.05773409]
[1748872381890,38.65059904,152.52,152.49,12.5]
[1748872382086,38.65059904,152.51,152.48,1.0]
[1748872382296,38.65059904,152.52,152.48,7.55802276]
[1748872382605,38.65059904,152.51,152.48,7.55802276]
[1748872382903,38.65059904,152.51,152.48,1.0]
[1748872383106,38.65059904,152.51,152.48,7.55819647]
[1748872383489,38.65059904,152.49,152.48,1.0]
[1748872385207,45.2084061,152.49,152.48,1.0]
[1748872385599,43.48,152.52,152.48,1.0]
[1748872385996,38.65059904,152.49,152.48,1.0]
[1748872387712,45.2084061,152.49,152.48,1.0]
[1748872388415,38.65059904,152.49,152.48,1.0]
[1748872388588,40.65059904,152.49,152.48,1.0]
[1748872389301,2.0,152.49,152.48,1.0]
[1748872389505,47.2084061,152.49,152.48,1.0]
[1748872390311,40.65059904,152.49,152.48,1.0]
[1748872392118,2.0,152.49,152.48,7.55823714]
[1748872392287,38.65059904,152.52,152.48,46.20883618]
[1748872392595,38.65059904,152.51,152.48,7.55823714]
[1748872392919,6.55592826,152.54,152.48,7.55823714]
[1748872393305,38.65059904,152.51,152.48,7.55823714]
[1748872393629,6.55592826,152.54,152.48,7.55823714]
[1748872393796,38.65059904,152.51,152.48,7.55823714]
[1748872394190,38.65059904,152.49,152.48,1.0]
[1748872394416,38.65059904,152.49,152.48,7.55823714]
[1748872394621,2.0,152.53,152.48,7.55823714]
[1748872394798,6.55592826,152.54,152.48,1.0]
[1748872394994,38.65059904,152.49,152.48,1.0]
[1748872395916,45.2084061,152.49,152.48,1.0]
[1748872397227,123.68938855,152.55,152.48,1.0]
[1748872397403,38.65059904,152.49,152.48,1.0]
[1748872397596,73.68938855,152.55,152.48,1.0]
[1748872397597,38.65059904,152.5,152.48,1.0]
[1748872397810,38.65059904,152.5,152.48,7.55814575]
[1748872398125,38.65059904,152.49,152.48,1.0]
[1748872398707,22.94647147,152.53,152.48,1.0]
[1748872398904,38.65059904,152.49,152.48,1.0]
[1748872399107,38.65059904,152.5,152.48,7.55823714]
[1748872399304,38.65059904,152.52,152.48,7.55823714]
[1748872399504,6.2972,152.56,152.49,38.65059904]
[1748872399505,38.65059904,152.53,152.49,38.65059904]
[1748872399733,6.55371606,152.59,152.52,38.65059904]
[1748872399905,38.65059904,152.56,152.52,38.65059904]
[1748872400106,38.65059904,152.55,152.51,43.24]
[1748872400415,6.55371606,152.59,152.5,26.0]
[1748872400416,38.65059904,152.52,152.5,12.26]
[1748872400614,6.55371606,152.59,152.48,33.55823714]
[1748872400615,38.65059904,152.51,152.48,33.55823714]
[1748872400917,38.65059904,152.51,152.48,7.55823714]
[1748872401115,38.65059904,152.52,152.48,7.55823714]
[1748872401315,43.24,152.58,152.48,7.55823714]
[1748872401516,6.55436848,152.57,152.48,7.55823714]
[1748872401822,38.65059904,152.51,152.48,7.55823714]
[1748872403249,38.65059904,152.55,152.48,1.0]
[1748872403454,38.65059904,152.49,152.48,1.0]
[1748872407142,45.2084061,152.49,152.48,1.0]
[1748872407962,107.05805496,152.49,152.48,1.0]
[1748872409053,107.05805496,152.49,152.37,101.0576]
[1748872409054,20.21114886,152.46,152.37,101.0576]
[1748872409364,38.65059904,152.38,152.37,94.42]
[1748872409538,38.65059904,152.38,152.36,12.26]
[1748872409743,116.15834699,152.45,152.33,0.75508011]
[1748872409744,77.30119808,152.37,152.33,0.75508011]
[1748872409977,38.65059904,152.34,152.29,12.26]
[1748872410144,111.84964886,152.41,152.29,50.91059904]
[1748872410346,38.65059904,152.33,152.29,12.26]
[1748872410539,38.65059904,152.32,152.29,12.26]
[1748872411168,43.22,152.36,152.28,0.8918924]
[1748872411340,38.65059904,152.31,152.28,0.8918924]
[1748872411661,43.22,152.36,152.3,9.78584937]
[1748872411861,38.65059904,152.34,152.3,48.43644841]
[1748872412158,1.5731,152.42,152.32,64.65059904]
[1748872412366,38.65059904,152.38,152.33,38.65059904]
[1748872412564,38.65059904,152.38,152.32,26.0]
[1748872412860,38.65059904,152.39,152.35,38.65059904]
[1748872413043,38.65059904,152.4,152.36,6.56340246]
[1748872413238,38.65059904,152.4,152.37,12.26]
[1748872413456,38.65059904,152.38,152.37,12.26]
[1748872413869,38.65059904,152.39,152.37,12.26]
[1748872414040,38.65059904,152.38,152.37,12.26]
[1748872414468,9.49731704,152.44,152.37,12.26]
[1748872415561,38.65059904,152.39,152.38,6.56254101]
[1748872416064,9.49731704,152.44,152.38,22.96889354]
[1748872416270,38.65059904,152.41,152.38,22.96889354]
[1748872416646,9.49731704,152.44,152.38,22.96889354]
[1748872416969,38.65059904,152.42,152.38,22.96889354]
[1748872417147,38.65059904,152.39,152.38,6.56254101]
[1748872418160,38.65059904,152.39,152.37,18.82285645]
[1748872418345,16.05734409,152.44,152.37,18.82285645]
[1748872418346,38.65059904,152.38,152.37,18.82285645]
[1748872419050,38.65059904,152.38,152.37,12.26]
[1748872419456,38.65059904,152.38,152.37,18.82297171]
[1748872420068,38.65059904,152.38,152.37,12.26]
[1748872421068,83.86398368,152.38,152.3,97.67986119]
[1748872421254,38.65059904,152.31,152.3,97.67986119]
[1748872422045,40.15419904,152.31,152.11,32.36604845]
[1748872422241,40.15419904,152.31,152.02,3.30688446]
[1748872422242,10.0,152.21,152.02,3.30688446]
[1748872422467,10.0,152.21,152.03,6.57764914]
[1748872422468,10.0,152.16,152.03,6.57764914]
[1748872422643,10.0,152.16,152.03,50.65764914]
[1748872422848,80.22901982,152.05,152.01,81.28623124]
[1748872423053,60.83691215,152.08,152.04,38.65059904]
[1748872423288,17.88840903,152.07,152.01,44.14]
[1748872423590,60.83691215,152.08,152.02,61.75097547]
[1748872423758,60.83691215,152.09,152.03,107.31222983]
[1748872423954,49.14387708,152.2,152.04,14.46541951]
[1748872424181,49.14387708,152.2,152.03,92.35625456]
[1748872424182,3.7170532,152.19,152.17,101.25649602]
[1748872424483,4.64084921,152.19,152.18,143.40417112]
[1748872424779,67.46385296,152.19,152.18,138.93875161]
[1748872424952,67.46385296,152.19,152.08,74.51097547]
[1748872425148,4.64116771,152.16,152.05,74.51097547]
[1748872425485,61.75097547,152.1,152.05,100.51097547]
[1748872425659,61.75097547,152.08,152.05,12.76]
[1748872425980,3.71287749,152.07,152.05,12.76]
[1748872426147,3.71287749,152.06,152.05,12.76]
[1748872426849,3.71287749,152.06,152.05,81.08775942]
[1748872427165,60.1146405,152.14,152.01,6.57851457]
[1748872427353,3.70161155,152.13,152.12,61.75097547]
[1748872427555,3.70161155,152.13,152.12,13.28]
[1748872428084,61.75097547,152.18,152.12,75.03097547]
[1748872428258,3.69559791,152.17,152.14,61.75097547]
[1748872428572,61.75097547,152.17,152.12,75.03097547]
[1748872428772,110.64350151,152.16,152.13,6.57332544]
[1748872429074,106.95097547,152.16,152.13,6.57332544]
[1748872429275,61.75097547,152.15,152.13,19.85332544]
[1748872429474,45.2,152.16,152.13,19.85332544]
[1748872430148,45.2,152.16,152.13,81.60430091]
[1748872430571,2.46393382,152.15,152.13,98.03761452]
[1748872430776,61.75097547,152.19,152.14,61.75097547]
[1748872431080,2.46376132,152.18,152.14,87.75097547]
[1748872431258,2.46375853,152.17,152.14,26.0]
[1748872431459,61.75097547,152.18,152.14,26.0]
[1748872431983,45.12,152.18,152.15,61.75097547]
[1748872432163,45.12,152.18,152.16,6.57202944]
[1748872432879,2.46368531,152.17,152.16,6.57202944]
[1748872433063,2.46368214,152.17,152.16,68.32300491]
[1748872433268,45.1,152.21,152.16,68.32300491]
[1748872433577,45.1,152.21,152.18,61.75097547]
[1748872433782,45.08,152.21,152.19,13.28]
[1748872434184,61.75097547,152.2,152.19,13.28]
[1748872434483,61.75097547,152.2,152.19,19.85073395]
[1748872434687,47.52345954,152.2,152.19,19.85073395]
[1748872435189,2.46345954,152.2,152.19,81.60170942]
[1748872435479,61.75097547,152.24,152.19,98.02854429]
[1748872435655,61.75097547,152.23,152.19,36.27756882]
[1748872435855,2.46317979,152.2,152.19,19.85073395]
[1748872436158,2.46317979,152.2,152.19,81.60170942]
[1748872436360,45.02,152.22,152.19,81.60170942]
[1748872436662,2.46318418,152.21,152.2,61.75097547]
[1748872436983,2.46318418,152.21,152.19,81.60170942]
[1748872437154,2.46318418,152.2,152.19,81.60170942]
[1748872437361,45.02,152.22,152.19,81.60170942]
[1748872437561,34.81768713,152.28,152.19,81.60170942]
[1748872437562,28.25077259,152.28,152.22,26.0]
[1748872437859,44.96,152.27,152.24,61.75097547]
[1748872438061,11.16464603,152.32,152.25,13.28]
[1748872438258,61.75097547,152.28,152.26,6.56771312]
[1748872438457,44.94,152.27,152.26,6.56771312]
[1748872438659,44.94,152.3,152.25,19.84801645]
[1748872438864,61.75097547,152.26,152.25,13.28]
[1748872439083,5.68083986,152.31,152.25,19.84814449]
[1748872439084,44.94,152.27,152.25,19.84814449]
[1748872439283,106.69097547,152.27,152.25,19.84814449]
[1748872439781,106.69097547,152.27,152.25,13.28]
[1748872439988,61.75097547,152.26,152.25,13.28]
[1748872440360,6.56814449,152.25,152.13,6.57332544]
[1748872440555,61.75097547,152.18,152.13,6.57332544]
[1748872440784,45.04,152.18,152.14,61.75097547]
[1748872440955,45.04,152.18,152.15,61.75097547]
[1748872441151,45.04,152.18,152.13,32.57332544]
[1748872441152,3.6844903,152.25,152.17,61.75097547]
[1748872441390,3.6844903,152.25,152.2,61.75097547]
[1748872441391,45.02,152.24,152.2,61.75097547]
[1748872441556,106.77097547,152.24,152.2,61.75097547]
[1748872441761,45.02,152.24,152.2,61.75097547]
[1748872442089,6.56607464,152.3,152.23,61.75097547]
[1748872442264,48.70469303,152.29,152.25,61.75097547]
[1748872442457,110.4556685,152.29,152.25,81.59902501]
[1748872442669,4.59943952,152.33,152.26,61.75097547]
[1748872442872,61.75097547,152.3,152.26,61.75097547]
[1748872443084,106.75097547,152.29,152.25,81.59902501]
[1748872443288,106.75097547,152.29,152.25,19.84804954]
[1748872443458,106.75097547,152.29,152.25,13.28]
[1748872443660,108.75097547,152.29,152.25,81.59892231]
[1748872443888,2.0,152.29,152.27,61.75097547]
[1748872444061,65.43730995,152.33,152.25,62.26830808]
[1748872444260,3.68633448,152.32,152.3,6.56598818]
[1748872444485,3.68633448,152.32,152.25,55.70036124]
[1748872444486,44.98,152.31,152.28,61.75097547]
[1748872444989,106.73097547,152.31,152.26,68.31868859]
[1748872445286,10.25208711,152.35,152.22,16.42307148]
[1748872445287,61.75097547,152.28,152.22,16.42307148]
[1748872445487,134.72439193,152.35,152.18,94.58]
[1748872445488,61.75097547,152.23,152.18,94.58]
[1748872445787,61.75097547,152.22,152.2,13.28]
[1748872445967,106.75097547,152.23,152.2,13.28]
[1748872446169,61.75097547,152.21,152.2,13.28]
[1748872447297,72.01803214,152.21,152.15,19.85218258]
[1748872447587,61.75097547,152.17,152.15,19.85218258]
[1748872447765,45.0,152.16,152.15,19.85218258]
[1748872447967,43.9988328,152.16,152.15,19.85218258]
[1748872451279,4.63194563,152.23,152.15,81.60315805]
[1748872451468,61.75097547,152.21,152.16,61.75097547]
[1748872451796,44.86,152.21,152.19,26.0]
[1748872452084,61.75097547,152.25,152.2,61.75097547]
[1748872452262,3.7095477,152.24,152.23,68.31998289]
[1748872452463,44.86,152.25,152.23,68.31998289]
[1748872452672,44.86,152.26,152.24,61.75097547]
[1748872452866,4.63194563,152.32,152.25,61.75097547]
[1748872453099,1.5046,152.36,152.28,61.75097547]
[1748872453100,3.71213663,152.31,152.28,61.75097547]
[1748872453288,61.75097547,152.33,152.29,75.03097547]
[1748872453471,3.71407924,152.32,152.29,75.03097547]
[1748872453787,4.63194563,152.38,152.31,61.75097547]
[1748872453990,6.56197038,152.4,152.31,61.75097547]
[1748872453991,3.7133368,152.37,152.35,61.75097547]
[1748872454294,65.46312253,152.36,152.35,13.28]
[1748872454791,65.4647727,152.36,152.35,13.28]
[1748872455365,65.4647727,152.36,152.3,6.56587248]
[1748872455366,72.02817516,152.36,152.3,6.56587248]
[1748872455591,61.75097547,152.32,152.3,13.28]
[1748872455773,44.82,152.31,152.29,26.0]
[1748872455975,65.46619354,152.3,152.25,13.28]
[1748872456292,44.82,152.31,152.25,19.84789465]
[1748872456587,61.75097547,152.27,152.25,19.84789465]
[1748872456781,61.75097547,152.26,152.25,13.28]
[1748872457096,61.75097547,152.26,152.25,19.84814449]
[1748872457386,61.75097547,152.26,152.25,13.28]
[1748872457893,106.55097547,152.27,152.25,19.84814449]
[1748872458384,2.46237348,152.26,152.25,19.84814449]
[1748872458572,44.8,152.27,152.25,19.84814449]
[1748872458775,44.74,152.27,152.25,19.84814449]
[1748872458974,11.20665048,152.34,152.26,61.75097547]
[1748872459180,11.20665048,152.34,152.2,100.7037]
[1748872459181,61.75097547,152.27,152.14,6.0927]
[1748872459502,50.96323514,152.26,152.16,61.75097547]
[1748872459795,48.54010393,152.25,152.17,74.91097547]
[1748872459992,61.75097547,152.23,152.18,61.75097547]
[1748872460292,6.26292991,152.29,152.17,13.16]
[1748872460293,61.75097547,152.21,152.17,13.16]
[1748872460591,44.82,152.24,152.18,68.32214119]
[1748872460790,64.21400725,152.23,152.18,68.32214119]
[1748872460975,51.38865289,152.24,152.16,6.57202944]
[1748872461170,61.75097547,152.18,152.15,114.29239501]
[1748872461490,61.75097547,152.19,152.15,140.29239501]
[1748872461692,61.75097547,152.19,152.15,202.04337048]
[1748872461898,61.75097547,152.18,152.15,133.72]
[1748872462083,61.75097547,152.16,152.15,107.72]
[1748872462285,44.8,152.2,152.15,107.72]
[1748872462505,2.46365145,152.19,152.15,107.72]
[1748872462679,44.8,152.2,152.15,94.56]
[1748872462870,61.75097547,152.18,152.16,13.16]
[1748872463073,61.75097547,152.17,152.16,13.16]
[1748872464235,61.75097547,152.18,152.16,13.16]
[1748872464380,11.23482613,152.24,152.17,61.75097547]
[1748872464705,61.75097547,152.21,152.17,61.75097547]
[1748872464904,44.82,152.23,152.17,61.75097547]
[1748872465076,44.82,152.25,152.19,61.75097547]
[1748872465277,61.75097547,152.21,152.16,13.16]
[1748872465584,22.98710553,152.26,152.17,61.75097547]
[1748872465585,106.57097547,152.22,152.17,61.75097547]
[1748872465783,106.57097547,152.22,152.16,13.16]
[1748872466079,61.75097547,152.2,152.16,74.91097547]
[1748872466386,106.57097547,152.22,152.17,61.75097547]
[1748872466583,106.57097547,152.22,152.18,68.32202939]
[1748872466783,2.46310576,152.21,152.18,6.57105392]
[1748872467001,61.75097547,152.21,152.16,81.48260943]
[1748872467714,61.75097547,152.2,152.16,19.73163396]
[1748872468216,61.75097547,152.21,152.16,81.48260943]
[1748872468421,61.75097547,152.17,152.15,94.56]
[1748872468580,61.75097547,152.17,152.15,107.74]
[1748872468777,61.75097547,152.16,152.15,107.74]
[1748872469000,61.75097547,152.16,152.04,6.57721652]
[1748872469177,61.75097547,152.14,152.09,61.75097547]
[1748872469507,2.46461423,152.13,152.1,61.75097547]
[1748872469820,16.42422691,152.22,152.12,61.75097547]
[1748872469821,61.75097547,152.18,152.12,61.75097547]
[1748872469987,47.32407837,152.17,152.14,61.75097547]
[1748872470189,2.46408037,152.16,152.14,61.75097547]
[1748872470389,44.86,152.17,152.14,61.75097547]
[1748872470584,2.46405877,152.16,152.15,61.75097547]
[1748872470812,1.5059,152.22,152.11,39.18]
[1748872470813,61.75097547,152.18,152.11,39.18]
[1748872470986,61.75097547,152.17,152.12,87.75097547]
[1748872471184,64.21495239,152.16,152.12,26.0]
[1748872471387,61.75097547,152.17,152.12,87.75097547]
[1748872471599,2.46406144,152.16,152.13,61.75097547]
[1748872471891,44.84,152.18,152.13,61.75097547]
[1748872472103,61.75097547,152.17,152.12,94.32473302]
[1748872472311,61.75097547,152.16,152.12,94.32473302]
[1748872472517,61.75097547,152.17,152.12,94.32473302]
[1748872472824,51.41136591,152.18,152.11,13.18]
[1748872472825,61.75097547,152.13,152.11,13.18]
[1748872473021,109.05576084,152.12,152.11,13.18]
[1748872473222,109.03576107,152.12,152.11,13.18]
[1748872473384,106.57097547,152.12,152.04,68.32815592]